bitfinex-derivatives/quotes_BTCF0:USTF0_20250406
["timestamp","ask_amount","ask_price","bid_price","bid_amount"]
[1743971204256,0.38702001,79392.0,79385.0,0.00018894]
[1743971204750,0.38802001,79392.0,79385.0,0.00018894]
[1743971205955,0.1971,79391.0,79385.0,0.00018894]
[1743971206147,0.19882001,79391.0,79385.0,0.00018894]
[1743971206349,0.3747,79390.0,79385.0,0.00018894]
[1743971206554,0.37642001,79390.0,79385.0,0.00018894]
[1743971207156,0.37642001,79390.0,79378.0,0.2983325]
[1743971207548,0.00172001,79390.0,79380.0,0.22881695]
[1743971207749,0.00172001,79390.0,79381.0,0.3816]
[1743971208054,0.00272001,79390.0,79381.0,0.3816]
[1743971208257,0.00272001,79390.0,79382.0,0.1853]
[1743971208554,0.3608,79383.0,79381.0,0.1915]
[1743971208871,0.3608,79382.0,79381.0,0.1915]
[1743971209043,0.74832001,79382.0,79381.0,0.1915]
[1743971209243,0.38752001,79382.0,79381.0,0.1915]
[1743971209764,0.00172001,79382.0,79381.0,0.1915]
[1743971210258,0.00172001,79382.0,79381.0,0.14575126]
[1743971210449,0.00172001,79382.0,79381.0,0.0170677]
[1743971210862,0.39032001,79382.0,79381.0,0.0170677]
[1743971211361,0.39032001,79382.0,79378.0,0.00986625]
[1743971211558,0.00172001,79382.0,79379.0,0.3608]
[1743971211749,0.3886,79390.0,79379.0,0.183]
[1743971211949,0.3913,79381.0,79379.0,0.183]
[1743971212153,0.3913,79381.0,79378.0,0.0095921]
[1743971212154,0.3931,79381.0,79378.0,0.0095921]
[1743971212458,0.3931,79381.0,79378.0,0.00018894]
[1743971212859,0.3608,79380.0,79378.0,0.00018894]
[1743971213057,0.55952001,79380.0,79378.0,0.00018894]
[1743971213358,0.3913,79379.0,79366.0,1.7482525]
[1743971213562,0.3608,79370.0,79366.0,1.7482525]
[1743971213761,0.3913,79369.0,79366.0,1.7482525]
[1743971213949,0.39302001,79369.0,79366.0,1.7482525]
[1743971214366,0.01309599,79368.0,79366.0,1.7482525]
[1743971214556,0.01489599,79368.0,79366.0,1.7482525]
[1743971214757,0.3856,79367.0,79366.0,1.7482525]
[1743971214958,0.00184,79367.0,79366.0,1.7482525]
[1743971215152,0.002,79369.0,79366.0,2.3172525]
[1743971215353,0.38672001,79369.0,79366.0,2.3172525]
[1743971215553,0.001,79368.0,79366.0,2.3172525]
[1743971215751,0.00272001,79368.0,79366.0,2.3172525]
[1743971215951,0.1897,79367.0,79366.0,2.3172525]
[1743971216156,0.38672001,79367.0,79366.0,2.3172525]
[1743971216352,0.38672001,79367.0,79366.0,2.25443606]
[1743971216756,0.38672001,79367.0,79366.0,2.06293606]
[1743971217247,0.38772001,79367.0,79366.0,2.06293606]
[1743971217554,0.38672001,79367.0,79366.0,2.06293606]
[1743971218261,0.38772001,79367.0,79366.0,2.06293606]
[1743971218462,0.00372001,79367.0,79366.0,2.06293606]
[1743971218664,0.002,79367.0,79366.0,2.25153606]
[1743971219361,0.002,79367.0,79366.0,2.18871962]
[1743971219559,0.32186001,79370.0,79366.0,2.18871962]
[1743971219763,0.379,79386.0,79369.0,0.3608]
[1743971219963,0.379,79386.0,79383.0,0.3608]
[1743971220158,0.38072001,79386.0,79384.0,0.1906]
[1743971221064,0.14941478,79393.0,79385.0,0.3608]
[1743971221259,0.3608,79412.0,79392.0,0.3608]
[1743971221456,0.1937,79404.0,79400.0,0.3608]
[1743971221656,0.1963,79403.0,79400.0,0.3608]
[1743971221857,0.1963,79403.0,79401.0,0.1813]
[1743971222157,0.1937,79402.0,79401.0,0.1813]
[1743971222351,0.1937,79402.0,79401.0,0.11848356]
[1743971222756,0.19490001,79402.0,79401.0,0.11848356]
[1743971223357,0.19490001,79402.0,79401.0,0.31288356]
[1743971223561,0.19490001,79402.0,79401.0,0.37601018]
[1743971223772,0.19490001,79402.0,79401.0,0.37801018]
[1743971224070,0.19490001,79402.0,79401.0,0.37901018]
[1743971225064,0.19490001,79402.0,79401.0,0.37801018]
[1743971225271,0.19590001,79402.0,79401.0,0.37901018]
[1743971225473,0.19590001,79402.0,79401.0,0.12179374]
[1743971225769,0.19590001,79402.0,79401.0,0.13135348]
[1743971225968,0.19590001,79402.0,79401.0,0.06512662]
[1743971227071,0.19590001,79402.0,79401.0,0.06412662]
[1743971228373,0.19590001,79402.0,79401.0,0.00131018]
[1743971228675,0.19590001,79402.0,79401.0,0.001]
[1743971229074,0.19590001,79402.0,79401.0,0.1978]
[1743971229669,0.3608,79428.0,79401.0,0.4497956]
[1743971229873,0.3836,79418.0,79411.0,0.3608]
[1743971230068,0.3836,79418.0,79411.0,0.55824]
[1743971230069,0.38444,79418.0,79411.0,0.55824]
[1743971230278,0.38444,79418.0,79411.0,0.73844]
[1743971230769,0.38444,79418.0,79411.0,0.00064]
[1743971231080,0.3608,79412.0,79407.0,0.00018894]
[1743971231273,0.3751,79411.0,79407.0,0.00018894]
[1743971231474,0.37594,79411.0,79393.0,0.5539747]
[1743971231774,0.3608,79410.0,79400.0,0.3608]
[1743971231974,0.36168,79410.0,79400.0,0.36148]
[1743971232174,0.3778,79409.0,79400.0,0.36148]
[1743971232369,0.37868,79409.0,79400.0,0.36148]
[1743971233177,0.37868,79409.0,79408.0,0.3608]
[1743971233474,0.37868,79409.0,79408.0,0.36152]
[1743971233674,0.38068,79409.0,79408.0,0.36152]
[1743971234681,0.37868,79409.0,79408.0,0.68490356]
[1743971235177,0.37868,79409.0,79408.0,0.38692]
[1743971235676,0.58481513,79434.0,79408.0,0.74772]
[1743971235872,0.1899,79421.0,79420.0,0.58949122]
[1743971236079,0.1899,79421.0,79420.0,0.3608]
[1743971236676,0.1908,79433.0,79420.0,0.3608]
[1743971236977,0.00018894,79428.0,79421.0,0.1981]
[1743971237175,0.00018894,79428.0,79421.0,0.3875]
[1743971237371,0.00018894,79428.0,79427.0,0.3608]
[1743971237576,0.00018894,79428.0,79427.0,0.29779359]
[1743971238479,0.00118894,79428.0,79427.0,0.29779359]
[1743971238677,0.00118894,79428.0,79421.0,0.7483]
[1743971238883,0.3771,79427.0,79421.0,0.7483]
[1743971239375,0.3771,79427.0,79421.0,0.5502]
[1743971239588,0.3771,79427.0,79421.0,0.3608]
[1743971240075,0.37778,79427.0,79421.0,0.36148]
[1743971240472,0.37778,79427.0,79421.0,0.29847359]
[1743971240781,0.38078,79427.0,79421.0,0.29847359]
[1743971240980,0.38178,79427.0,79422.0,0.5842]
[1743971241179,0.38178,79427.0,79422.0,0.585]
[1743971242083,0.00468,79427.0,79422.0,0.585]
[1743971242382,0.004,79427.0,79422.0,0.585]
[1743971243086,0.2005,79427.0,79422.0,0.585]
[1743971243481,0.2005,79427.0,79422.0,0.82774253]
[1743971243482,0.004,79427.0,79422.0,0.82774253]
[1743971243788,0.1953,79443.0,79423.0,0.12590573]
[1743971243984,0.1953,79443.0,79434.0,0.3608]
[1743971244281,0.00168,79439.0,79435.0,0.5659]
[1743971244485,0.001,79439.0,79435.0,0.56658]
[1743971244986,0.3608,79461.0,79435.0,0.56658]
[1743971245180,0.197,79454.0,79449.0,0.3608]
[1743971245487,0.1978,79454.0,79449.0,0.3616]
[1743971246678,0.1978,79454.0,79449.0,0.29859359]
[1743971246889,0.1953,79453.0,79450.0,0.1846]
[1743971247079,0.22401513,79468.0,79452.0,0.3608]
[1743971247388,0.005,79454.0,79452.0,0.362]
[1743971247586,0.197,79467.0,79453.0,0.5466]
[1743971247789,0.1953,79466.0,79453.0,0.54772]
[1743971247977,0.1953,79466.0,79465.0,0.3608]
[1743971248173,0.19642001,79466.0,79465.0,0.36192]
[1743971248377,0.19642001,79466.0,79465.0,0.37888778]
[1743971248888,0.1802,79480.0,79465.0,0.37888778]
[1743971248889,0.22401513,79485.0,79465.0,0.37889593]
[1743971249189,0.00144,79483.0,79479.0,0.3608]
[1743971249484,0.00064,79483.0,79480.0,0.01697593]
[1743971249681,0.1954,79482.0,79479.0,0.31628952]
[1743971249883,0.00112001,79482.0,79479.0,0.50208952]
[1743971250083,0.00112001,79482.0,79479.0,0.50320952]
[1743971251081,0.00112001,79482.0,79479.0,0.31740952]
[1743971251689,0.00112001,79482.0,79479.0,0.32040952]
[1743971252185,0.1811,79481.0,79479.0,0.32040952]
[1743971252893,0.1811,79481.0,79479.0,0.25740311]
[1743971253092,0.194,79480.0,79479.0,0.25740311]
[1743971254893,0.194,79480.0,79479.0,0.25840311]
[1743971255095,0.3738,79486.0,79479.0,0.43870311]
[1743971255395,0.09642357,79500.0,79485.0,0.3608]
[1743971255597,0.3738,79499.0,79493.0,0.3608]
[1743971255794,0.3738,79499.0,79493.0,0.29883359]
[1743971255993,0.3738,79499.0,79494.0,0.3765]
[1743971256180,0.1803,79499.0,79494.0,0.3775]
[1743971256387,0.09642357,79500.0,79494.0,0.3775]
[1743971257190,0.005,79499.0,79494.0,0.3775]
[1743971257995,0.005,79499.0,79494.0,0.45252862]
[1743971258697,0.005,79499.0,79494.0,0.38952221]
[1743971259193,0.09642357,79500.0,79494.0,0.38952221]
[1743971259394,0.09842357,79500.0,79494.0,0.38952221]
[1743971259794,0.3746,79499.0,79494.0,0.07602862]
[1743971260295,0.3756,79499.0,79494.0,0.07602862]
[1743971260487,0.3756,79499.0,79494.0,0.25882862]
[1743971260685,0.3756,79499.0,79494.0,0.07602862]
[1743971261794,0.3756,79499.0,79494.0,0.01302221]
[1743971262386,0.3756,79499.0,79494.0,0.0037192]
[1743971262592,0.5256,79499.0,79494.0,0.0037192]
[1743971262795,0.5256,79499.0,79462.0,1.80808]
[1743971262995,0.3608,79490.0,79474.0,0.00016]
[1743971263196,0.3608,79480.0,79474.0,0.00016]
[1743971263393,0.3825,79479.0,79467.0,0.3608]
[1743971263991,0.3825,79479.0,79467.0,0.42507941]
[1743971264190,0.3825,79479.0,79474.0,0.006]
[1743971264900,0.3825,79479.0,79467.0,0.06427941]
[1743971265101,0.3608,79472.0,79467.0,0.00072]
[1743971265291,0.1973,79471.0,79467.0,0.00072]
[1743971265492,0.19794,79471.0,79467.0,0.00072]
[1743971265803,0.19794,79471.0,79467.0,0.06271563]
[1743971265995,0.1973,79471.0,79467.0,0.00072]
[1743971266196,0.1906,79470.0,79468.0,0.1857]
[1743971266402,0.19132,79470.0,79469.0,0.1969]
[1743971266604,0.19132,79470.0,79469.0,0.19758]
[1743971267293,0.19132,79470.0,79467.0,0.43015261]
[1743971267495,0.18,79469.0,79467.0,0.43083261]
[1743971267693,0.18,79469.0,79467.0,0.42083261]
[1743971267889,0.1932,79468.0,79467.0,0.3578262]
[1743971269203,0.1932,79468.0,79467.0,0.3638262]
[1743971269400,0.1932,79468.0,79467.0,0.3648262]
[1743971270099,0.1942,79468.0,79467.0,0.3648262]
[1743971270406,0.1942,79468.0,79467.0,0.0695434]
[1743971270904,0.1932,79468.0,79467.0,0.006]
[1743971271205,0.1932,79468.0,79467.0,0.00772]
[1743971272109,0.3608,79492.0,79467.0,0.51852]
[1743971272307,0.1938,79481.0,79480.0,0.22869122]
[1743971272506,0.19476001,79481.0,79480.0,0.00064]
[1743971272696,0.19476001,79481.0,79480.0,0.19034]
[1743971272901,0.19476001,79481.0,79480.0,0.55114]
[1743971273803,0.19576001,79481.0,79480.0,0.55314]
[1743971274107,0.19576001,79481.0,79480.0,0.49013359]
[1743971274409,0.19576001,79481.0,79480.0,0.49377359]
[1743971275708,0.19476001,79481.0,79480.0,0.49377359]
[1743971275909,0.19476001,79481.0,79480.0,0.36944]
[1743971276905,0.19476001,79481.0,79480.0,0.30643359]
[1743971277603,0.00096001,79481.0,79480.0,0.30643359]
[1743971278006,0.1878,79485.0,79480.0,0.30643359]
[1743971278310,0.1878,79485.0,79482.0,0.3608]
[1743971278511,0.1878,79485.0,79483.0,0.3733]
[1743971278715,0.13869512,79485.0,79483.0,0.5648]
[1743971278910,0.17405954,79490.0,79483.0,0.5648]
[1743971279105,0.17405954,79490.0,79489.0,0.3608]
[1743971279810,0.22501513,79503.0,79489.0,0.3608]
[1743971280002,0.09726357,79500.0,79499.0,0.29779359]
[1743971280307,0.09726357,79500.0,79499.0,0.00064]
[1743971282112,0.09926357,79500.0,79499.0,0.00064]
[1743971282510,0.09926357,79500.0,79499.0,0.00164]
[1743971283007,0.09926357,79500.0,79497.0,0.12213359]
[1743971283205,0.1929,79499.0,79497.0,0.00064]
[1743971283404,0.19394001,79499.0,79497.0,0.00064]
[1743971283606,0.19394001,79499.0,79497.0,0.06404356]
[1743971284011,0.1993,79498.0,79497.0,0.06504356]
[1743971284211,0.20034001,79498.0,79497.0,0.06504356]
[1743971286114,0.20134001,79498.0,79497.0,0.00303715]
[1743971286415,0.20134001,79498.0,79497.0,0.002]
[1743971289011,0.20134001,79498.0,79496.0,0.06356721]
[1743971289315,0.1962,79497.0,79491.0,8e-05]
[1743971289815,0.1913,79496.0,79491.0,8e-05]
[1743971290120,0.1913,79496.0,79491.0,0.06218059]
[1743971290417,0.194,79495.0,79491.0,0.06210059]
[1743971290713,0.3608,79494.0,79487.0,8e-05]
[1743971290920,0.703249,79494.0,79487.0,8e-05]
[1743971291117,0.194,79493.0,79487.0,8e-05]
[1743971291617,0.1922,79492.0,79491.0,0.002]
[1743971292115,0.1922,79492.0,79485.0,0.29987359]
[1743971292316,0.194,79491.0,79487.0,0.003]
[1743971292713,0.194,79491.0,79485.0,0.29987359]
[1743971292912,0.1922,79490.0,79485.0,0.29987359]
[1743971293316,0.1922,79490.0,79486.0,0.1908]
[1743971293516,0.1988,79489.0,79486.0,0.1908]
[1743971293920,0.1922,79488.0,79486.0,0.1908]
[1743971294311,0.1922,79488.0,79485.0,0.36445966]
[1743971294510,0.1988,79487.0,79485.0,0.001]
[1743971294716,0.3608,79486.0,79482.0,0.00026869]
[1743971294914,0.1988,79485.0,79477.0,0.06303217]
[1743971295114,0.3608,79479.0,79471.0,0.29803359]
[1743971295616,0.1871,79478.0,79471.0,0.29803359]
[1743971295915,0.3608,79472.0,79462.0,0.1988]
[1743971296116,0.1871,79471.0,79467.0,0.00018869]
[1743971296819,0.18834001,79471.0,79467.0,0.00018869]
[1743971298023,0.1807,79470.0,79467.0,0.00018869]
[1743971298218,0.1807,79470.0,79462.0,0.13598228]
[1743971298219,0.18198,79470.0,79462.0,0.13598228]
[1743971298521,0.1853,79469.0,79462.0,0.13598228]
[1743971298930,0.1807,79468.0,79462.0,0.19972929]
[1743971299121,0.1807,79468.0,79467.0,0.001]
[1743971299326,0.18194001,79468.0,79467.0,0.001]
[1743971299816,0.18194001,79468.0,79462.0,0.20172929]
[1743971300421,0.18194001,79468.0,79467.0,0.001]
[1743971300819,0.00124001,79468.0,79467.0,0.3618]
[1743971301020,0.3608,79494.0,79467.0,0.151]
[1743971301220,0.18120263,79496.0,79481.0,0.29779359]
[1743971301421,0.18120263,79496.0,79490.0,0.51277467]
[1743971301615,0.18120263,79496.0,79490.0,0.3608]
[1743971302421,0.18120263,79496.0,79491.0,0.3714]
[1743971302723,0.18520263,79496.0,79491.0,0.3714]
[1743971303025,0.19020263,79496.0,79491.0,0.3714]
[1743971303827,0.19020263,79496.0,79491.0,0.3724]
[1743971304228,0.19020263,79496.0,79491.0,0.30939359]
[1743971304415,0.009,79496.0,79492.0,0.1946]
[1743971304617,0.009,79496.0,79493.0,0.1866]
[1743971305125,0.006,79496.0,79493.0,0.1866]
[1743971305322,0.00496001,79496.0,79493.0,0.18756]
[1743971305729,0.00396001,79496.0,79493.0,0.18756]
[1743971305927,0.195,79495.0,79493.0,0.18756]
[1743971306123,0.19588001,79495.0,79493.0,0.18756]
[1743971306435,0.19588001,79495.0,79493.0,0.00096]
[1743971307429,0.19588001,79495.0,79492.0,0.13255359]
[1743971307620,0.19588001,79495.0,79492.0,0.13323359]
[1743971307823,0.00088001,79495.0,79492.0,0.13323359]
[1743971308024,0.00088001,79495.0,79493.0,0.3768]
[1743971308227,0.00088001,79495.0,79493.0,0.37744]
[1743971308425,0.00388001,79495.0,79493.0,0.37744]
[1743971308727,0.00388001,79495.0,79493.0,0.00064]
[1743971308925,0.5543,79494.0,79493.0,0.00064]
[1743971309126,0.74040001,79494.0,79483.0,8e-05]
[1743971309331,0.3608,79486.0,79483.0,8e-05]
[1743971309532,0.36216,79486.0,79472.0,0.3846]
[1743971309729,0.00136,79486.0,79472.0,0.3846]
[1743971309930,0.7392,79494.0,79479.0,0.3608]
[1743971310128,0.7392,79494.0,79480.0,0.3846]
[1743971310322,0.7392,79494.0,79480.0,0.32178228]
[1743971310529,0.7392,79494.0,79481.0,0.1852]
[1743971310729,0.74068,79494.0,79481.0,0.1852]
[1743971311322,0.74668,79494.0,79481.0,0.1852]
[1743971312029,0.74068,79494.0,79481.0,0.1852]
[1743971312228,0.74168,79494.0,79481.0,0.1852]
[1743971312531,0.74168,79494.0,79481.0,0.1862]
[1743971313437,0.55678,79494.0,79481.0,0.12319359]
[1743971314534,0.55578,79494.0,79481.0,0.12319359]
[1743971314735,0.55678,79494.0,79481.0,0.12319359]
[1743971315836,0.55678,79494.0,79481.0,0.12219359]
[1743971316037,0.1876,79493.0,79481.0,0.12319359]
[1743971316339,0.1876,79493.0,79481.0,0.06018718]
[1743971316537,0.1941,79492.0,79481.0,0.06018718]
[1743971316735,0.19554,79492.0,79481.0,0.06018718]
[1743971316937,0.1876,79491.0,79481.0,0.06018718]
[1743971317435,0.1941,79490.0,79481.0,0.06018718]
[1743971317833,0.1876,79489.0,79481.0,0.06018718]
[1743971318339,0.1858,79488.0,79481.0,0.06018718]
[1743971318831,0.1807,79487.0,79481.0,0.05918718]
[1743971319033,0.1807,79487.0,79481.0,0.06018718]
[1743971319237,0.1858,79486.0,79481.0,0.06018718]
[1743971319534,0.1858,79486.0,79481.0,0.001]
[1743971319741,0.1807,79485.0,79481.0,0.2]
[1743971319935,0.3608,79483.0,79481.0,0.001]
[1743971320130,0.3665,79482.0,79481.0,0.001]
[1743971320433,0.36786,79482.0,79481.0,0.001]
[1743971320640,0.55246,79482.0,79481.0,0.001]
[1743971320832,0.55246,79482.0,79481.0,0.002]
[1743971321033,0.55246,79482.0,79481.0,0.001]
[1743971321640,0.55446,79482.0,79480.0,0.00018869]
[1743971322438,0.55446,79482.0,79472.0,0.29798228]
[1743971322939,0.55446,79482.0,79471.0,0.30086358]
[1743971323437,0.55446,79482.0,79471.0,8e-05]
[1743971323943,0.55346,79482.0,79471.0,8e-05]
[1743971324139,0.55346,79482.0,79471.0,0.18408]
[1743971324437,0.55346,79482.0,79474.0,0.3608]
[1743971324438,0.36886,79482.0,79474.0,0.3608]
[1743971324635,0.18206,79482.0,79475.0,0.3741]
[1743971324838,0.18306,79482.0,79475.0,0.3741]
[1743971325039,0.1946,79481.0,79475.0,0.3741]
[1743971325534,0.1802,79480.0,79476.0,0.01705254]
[1743971325735,0.1802,79480.0,79477.0,0.01705254]
[1743971325931,0.1802,79480.0,79478.0,0.01705254]
[1743971326132,0.1802,79480.0,79479.0,0.20225254]
[1743971327142,0.18156,79480.0,79479.0,0.20225254]
[1743971328336,0.18156,79480.0,79479.0,0.01705254]
[1743971328543,0.18156,79480.0,79474.0,0.32084613]
[1743971328735,0.1988,79479.0,79474.0,0.31484613]
[1743971329149,0.1922,79478.0,79474.0,0.31484613]
[1743971329636,0.1988,79477.0,79475.0,0.3626]
[1743971329834,0.1988,79477.0,79474.0,0.31484613]
[1743971330138,0.1922,79476.0,79474.0,0.31484613]
[1743971330335,0.19356,79476.0,79470.0,0.33858171]
[1743971330529,0.1988,79475.0,79470.0,0.15208171]
[1743971331029,0.1955,79474.0,79470.0,0.15208171]
[1743971331532,0.1988,79473.0,79470.0,0.0890753]
[1743971331730,0.1988,79473.0,79469.0,0.18136869]
[1743971331945,0.001,79475.0,79470.0,0.1865]
[1743971332346,0.001,79474.0,79471.0,0.1829]
[1743971332742,0.001,79474.0,79472.0,0.1899]
[1743971332942,0.001,79473.0,79472.0,0.1899]
[1743971334443,0.001,79474.0,79472.0,0.1899]
[1743971334643,0.001,79474.0,79472.0,0.12689359]
[1743971334843,0.3843,79473.0,79472.0,0.12689359]
[1743971335043,0.3853,79473.0,79472.0,0.12689359]
[1743971335240,0.3853,79473.0,79472.0,0.13289359]
[1743971335739,0.3843,79473.0,79472.0,0.13289359]
[1743971336140,0.3843,79473.0,79472.0,0.006]
[1743971336542,0.38570001,79473.0,79472.0,0.006]
[1743971337345,0.38570001,79473.0,79469.0,0.00026869]
[1743971337550,0.3843,79473.0,79472.0,0.006]
[1743971337751,0.3843,79473.0,79468.0,0.13484228]
[1743971337951,0.3853,79473.0,79468.0,0.13484228]
[1743971338151,0.3853,79473.0,79472.0,0.003]
[1743971338851,0.3853,79473.0,79468.0,0.13484228]
[1743971339051,0.3853,79473.0,79468.0,0.14084228]
[1743971339546,0.3843,79473.0,79469.0,0.05659765]
[1743971339855,0.3853,79473.0,79468.0,0.006]
[1743971340446,0.3853,79473.0,79467.0,0.73668819]
[1743971340447,0.3853,79473.0,79472.0,0.003]
[1743971340650,0.3853,79473.0,79467.0,0.67668178]
[1743971340952,0.3608,79470.0,79467.0,0.37588819]
[1743971341145,0.3834,79469.0,79467.0,0.37588819]
[1743971341346,0.3834,79469.0,79465.0,1.80826869]
[1743971341646,0.3834,79469.0,79465.0,1.80818869]
[1743971343647,0.3834,79469.0,79465.0,1.74518228]
[1743971343852,0.3844,79469.0,79465.0,1.74518228]
[1743971344847,0.38576,79469.0,79465.0,1.74518228]
[1743971345452,0.38576,79469.0,79465.0,0.00018869]
[1743971346850,0.38576,79469.0,79461.0,8e-05]
[1743971347050,0.38476,79469.0,79461.0,8e-05]
[1743971347560,0.3608,79462.0,79430.0,0.51288171]
[1743971347756,0.5624,79461.0,79455.0,8e-05]
[1743971347959,0.3608,79456.0,79448.0,0.00018869]
[1743971348155,0.3608,79454.0,79448.0,0.00018869]
[1743971348357,0.3648,79453.0,79449.0,8e-05]
[1743971348851,0.36616,79453.0,79449.0,8e-05]
[1743971349859,0.36616,79453.0,79447.0,0.00064689]
[1743971350160,0.36616,79453.0,79450.0,0.001]
[1743971350351,0.36616,79453.0,79451.0,0.1859]
[1743971350551,0.36716,79453.0,79451.0,0.1859]
[1743971350959,0.36816,79453.0,79451.0,0.1859]
[1743971351662,0.36616,79453.0,79451.0,0.1859]
[1743971351852,0.36716,79453.0,79451.0,0.1869]
[1743971352360,0.36716,79453.0,79451.0,0.001]
[1743971352845,0.36716,79453.0,79447.0,0.00175597]
[1743971353045,0.36716,79453.0,79446.0,0.37698335]
[1743971353256,0.3608,79447.0,79446.0,0.37698335]
[1743971353657,0.3608,79447.0,79446.0,0.43959981]
[1743971354053,0.36216,79447.0,79446.0,0.43951981]
[1743971354558,0.36316,79447.0,79446.0,0.06261646]
[1743971354758,0.36316,79447.0,79442.0,8e-05]
[1743971354960,0.5771,79446.0,79442.0,8e-05]
[1743971355160,0.57854,79446.0,79442.0,8e-05]
[1743971355561,0.38164,79446.0,79444.0,0.06377374]
[1743971355865,0.38164,79446.0,79444.0,0.00076733]
[1743971356061,0.38164,79446.0,79442.0,0.36088]
[1743971356457,0.38164,79446.0,79442.0,8e-05]
[1743971356658,0.3608,79443.0,79442.0,8e-05]
[1743971356860,0.3608,79443.0,79423.0,0.3608]
[1743971357053,0.5771,79442.0,79429.0,0.1964]
[1743971357364,0.5771,79442.0,79438.0,8e-05]
[1743971357565,0.57846,79442.0,79438.0,8e-05]
[1743971358363,0.57946,79442.0,79438.0,8e-05]
[1743971358564,0.58046,79442.0,79438.0,8e-05]
[1743971358865,0.58046,79442.0,79430.0,0.5145467]
[1743971359057,0.58046,79442.0,79430.0,0.21635311]
[1743971359961,0.58046,79442.0,79430.0,0.0642714]
[1743971360170,0.3608,79432.0,79420.0,0.37690335]
[1743971360364,0.3825,79431.0,79420.0,0.52898506]
[1743971360559,0.3825,79431.0,79424.0,0.00016]
[1743971361463,0.38394,79431.0,79424.0,0.00016]
[1743971361664,0.38394,79431.0,79425.0,0.06606303]
[1743971361966,0.38494,79431.0,79425.0,0.00305662]
[1743971362165,0.38494,79431.0,79425.0,0.00932008]
[1743971362367,0.38494,79431.0,79424.0,0.00016]
[1743971362560,0.38594,79431.0,79424.0,0.00016]
[1743971363659,0.38594,79431.0,79424.0,0.06384321]
[1743971363855,0.3608,79425.0,79413.0,0.15217221]
[1743971364054,0.3608,79414.0,79393.0,0.92440122]
[1743971364258,0.3608,79414.0,79412.0,8e-05]
[1743971364466,0.3608,79413.0,79399.0,0.7032127]
[1743971364669,0.3608,79413.0,79399.0,0.5205127]
[1743971364670,0.3608,79401.0,79399.0,0.5205127]
[1743971364964,0.1985,79400.0,79399.0,0.45750629]
[1743971365966,0.19990001,79400.0,79399.0,0.45750629]
[1743971366471,0.20090001,79400.0,79399.0,0.45750629]
[1743971367568,0.58380001,79400.0,79399.0,0.45750629]
[1743971367767,0.38530001,79400.0,79399.0,0.45750629]
[1743971367967,0.38530001,79400.0,79399.0,0.58039988]
[1743971369170,0.38530001,79400.0,79399.0,0.1859]
[1743971370076,0.38530001,79400.0,79393.0,0.39457988]
[1743971370981,0.38530001,79400.0,79393.0,0.39449988]
[1743971371166,0.38430001,79400.0,79393.0,0.33256402]
[1743971371473,0.3608,79394.0,79393.0,0.33256402]
[1743971371961,0.36216,79394.0,79393.0,0.33256402]
[1743971373473,0.36216,79394.0,79392.0,0.1979]
[1743971373677,0.36316,79394.0,79393.0,0.1892]
[1743971374066,0.36416,79394.0,79393.0,0.12619359]
[1743971374573,0.00236,79394.0,79393.0,0.48699359]
[1743971374768,0.002,79394.0,79393.0,0.12619359]
[1743971375176,0.001,79394.0,79393.0,0.12619359]
[1743971375373,0.002,79394.0,79393.0,0.12619359]
[1743971375760,0.00348,79394.0,79393.0,0.12619359]
[1743971377077,0.00348,79394.0,79393.0,0.06318718]
[1743971379873,0.00348,79394.0,79391.0,0.06253656]
[1743971380069,0.3608,79392.0,79383.0,0.1833]
[1743971380271,0.3715,79391.0,79387.0,0.06290207]
[1743971380471,0.3715,79391.0,79383.0,0.31109359]
[1743971380677,0.3715,79391.0,79384.0,8e-05]
[1743971380978,0.37286,79391.0,79384.0,8e-05]
[1743971382073,0.37386,79391.0,79384.0,8e-05]
[1743971382380,0.3608,79385.0,79369.0,0.1867]
[1743971382570,0.3608,79371.0,79369.0,0.1867]
[1743971382770,0.3654,79370.0,79369.0,0.1867]
[1743971383178,0.3773042,79370.0,79369.0,0.06345667]
[1743971383379,0.3787442,79370.0,79365.0,8e-05]
[1743971384579,0.3797442,79370.0,79362.0,0.194]
[1743971384879,0.3807442,79370.0,79365.0,8e-05]
[1743971386179,0.3807442,79370.0,79366.0,0.00031657]
[1743971386382,0.3807442,79370.0,79365.0,8e-05]
[1743971388567,0.36884,79370.0,79365.0,0.06419167]
[1743971388779,0.36884,79370.0,79365.0,0.17548]
[1743971388985,0.36884,79370.0,79366.0,0.1833]
[1743971389284,0.36884,79370.0,79366.0,0.12029359]
[1743971389976,0.36884,79370.0,79366.0,0.12019895]
[1743971390576,0.36884,79370.0,79367.0,0.1754]
[1743971391282,0.00344,79370.0,79367.0,0.5362]
[1743971391477,0.002,79370.0,79367.0,0.5362]
[1743971391677,0.002,79370.0,79367.0,0.1754]
[1743971392175,0.1833,79369.0,79367.0,0.1754]
[1743971392382,0.1833,79369.0,79365.0,0.06321651]
[1743971392576,0.1762,79368.0,79362.0,0.194]
[1743971392882,0.1762,79368.0,79365.0,8e-05]
[1743971393085,0.1833,79367.0,79365.0,8e-05]
[1743971393878,0.002,79370.0,79365.0,8e-05]
[1743971394079,0.001,79368.0,79365.0,8e-05]
[1743971394777,0.001,79369.0,79365.0,8e-05]
[1743971394979,0.001,79367.0,79365.0,8e-05]
[1743971395284,0.001,79367.0,79363.0,0.11855359]
[1743971395585,0.001,79370.0,79364.0,0.1779]
[1743971395788,0.002,79368.0,79364.0,0.1779]
[1743971396180,0.001,79368.0,79364.0,0.1779]
[1743971396488,0.001,79367.0,79365.0,0.05639635]
[1743971396782,0.001,79367.0,79364.0,0.1779]
[1743971396985,0.00236,79367.0,79365.0,0.05639635]
[1743971397187,0.00336,79367.0,79366.0,0.05639635]
[1743971397690,0.00236,79367.0,79364.0,0.1779]
[1743971397886,0.00236,79367.0,79365.0,0.05640012]
[1743971398181,0.00236,79367.0,79364.0,0.1779]
[1743971398382,0.00336,79367.0,79365.0,0.05589722]
[1743971398582,0.00336,79367.0,79365.0,0.1844]
[1743971399189,0.00336,79367.0,79366.0,0.3608]